fUST/lending_fUST_20240925
["ID","MTS","AMOUNT","RATE_DAILY","PERIOD"]
[339122714,1727261447003,-343.107649,0.0001637,2]
[339122716,1727261447012,-151.0,0.0001637,2]
[339122718,1727261447022,-500.0,0.00016373,2]
[339122720,1727261447032,-500.0,0.00016373,2]
[339122722,1727261447041,-500.0,0.00016373,2]
[339122724,1727261447050,-500.0,0.00016373,2]
[339122726,1727261447060,-500.0,0.00016373,2]
[339122728,1727261447069,-500.0,0.00016373,2]
[339122730,1727261447079,-500.0,0.00016373,2]
[339122732,1727261447088,-500.0,0.00016373,2]
[339122734,1727261447098,-353.58973445,0.00016373,2]
[339125036,1727261471165,3015.049,0.000141,2]
[339128422,1727262274605,226147.67711596,0.00014,2]
[339128431,1727262365143,24900.0,0.00014076,2]
[339129200,1727262641589,-179.9064019,0.00014306,2]
[339129202,1727262641600,-181.7404815,0.00014413,2]
[339129204,1727262641612,-1547.988631,0.00014555,2]
[339129206,1727262641623,-300.0,0.00014593,2]
[339129208,1727262641633,-300.0,0.00014593,2]
[339129211,1727262641643,-8712.4789824,0.00014594,2]
[339129213,1727262641654,-346.35883223,0.00014841,2]
[339129215,1727262641663,-380.4290575,0.00014941,2]
[339129217,1727262641673,-1000.0,0.00015231,2]
[339129219,1727262641683,-234.02444057,0.00015973,2]
[339129221,1727262641692,-500.0,0.00015973,2]
[339129223,1727262641702,-500.0,0.00015973,2]
[339129225,1727262641711,-500.0,0.00015973,2]
[339129227,1727262641720,-500.0,0.00015973,2]
[339129229,1727262641730,-500.54961617,0.00015973,2]
[339129231,1727262641742,-420.0,0.00015978,2]
[339129233,1727262641752,-500.0,0.00015988,2]
[339129235,1727262641763,-500.0,0.00015988,2]
[339129237,1727262641773,-500.0,0.00015988,2]
[339129239,1727262641782,-294.88402267,0.00015988,2]
[339129686,1727262646266,-312.60943603,0.0001589,2]
[339129688,1727262646276,-205.11597733,0.00015988,2]
[339129690,1727262646286,-500.0,0.00015988,2]
[339129692,1727262646296,-500.0,0.00015988,2]
[339129694,1727262646305,-500.0,0.00015988,2]
[339129696,1727262646315,-500.0,0.00015988,2]
[339129698,1727262646324,-500.0,0.00015988,2]
[339129700,1727262646335,-500.0,0.00015988,2]
[339129702,1727262646346,-500.0,0.00015988,2]
[339129704,1727262646356,-500.0,0.00015988,2]
[339129706,1727262646366,-500.0,0.00015988,2]
[339129708,1727262646376,-500.0,0.00015988,2]
[339129710,1727262646385,-500.0,0.00015988,2]
[339129712,1727262646395,-347.41680406,0.00015988,2]
[339133552,1727262933947,-5843.981613,0.00014372,2]
[339133553,1727262933970,-250.0,0.00014858,2]
[339133554,1727262933995,-250.0,0.00014969,2]
[339133555,1727262934019,-338.406611,0.00014987,2]
[339133556,1727262934042,-6894.0,0.00015,2]
[339133557,1727262934066,-250.0,0.0001501,2]
[339133558,1727262934089,-250.0,0.00015052,2]
[339133559,1727262934112,-5843.981613,0.00015057,2]
[339133560,1727262934136,-250.0,0.00015093,2]
[339133561,1727262934158,-1206.38298,0.00015103,2]
[339133562,1727262934180,-300.0,0.00015132,2]
[339133563,1727262934203,-300.0,0.00015133,2]
[339133564,1727262934225,-250.0,0.00015134,2]
[339133565,1727262934248,-250.0,0.00015175,2]
[339133566,1727262934271,-250.0,0.00015216,2]
[339133567,1727262934294,-250.0,0.00015257,2]
[339133568,1727262934317,-250.0,0.00015298,2]
[339133569,1727262934339,-250.0,0.00015339,2]
[339133570,1727262934364,-250.0,0.0001538,2]
[339133571,1727262934386,-193.07784012,0.000154,2]
[339133572,1727262934409,-250.0,0.00015421,2]
[339133573,1727262934436,-250.0,0.00015462,2]
[339133574,1727262934458,-159.86914643,0.000155,2]
[339133575,1727262934482,-250.0,0.00015503,2]
[339133576,1727262934505,-250.0,0.00015544,2]
[339133577,1727262934528,-250.0,0.00015585,2]
[339133578,1727262934550,-250.0,0.00015626,2]
[339133579,1727262934573,-250.0,0.00015668,2]
[339133580,1727262934594,-250.0,0.00015709,2]
[339133581,1727262934615,-5843.981613,0.00015742,2]
[339133582,1727262934637,-250.0,0.0001575,2]
[339133583,1727262934659,-500.0,0.00015973,2]
[339133584,1727262934680,-500.0,0.00015978,2]
[339133585,1727262934702,-500.0,0.00015978,2]
[339133586,1727262934725,-500.0,0.00015978,2]
[339133587,1727262934747,-500.0,0.00015978,2]
[339133588,1727262934775,-221.79982652,0.00015978,2]
[339133589,1727262934797,-500.0,0.00015978,2]
[339133590,1727262934820,-500.0,0.00015978,2]
[339133591,1727262934844,-500.0,0.00015978,2]
[339133592,1727262934865,-619.95282104,0.00015978,2]
[339133593,1727262934887,-500.0,0.00015978,2]
[339133594,1727262934924,-500.0,0.00015978,2]
[339133595,1727262934949,-500.0,0.00015978,2]
[339133596,1727262934972,-354.08601224,0.00015978,2]
[339133597,1727262934997,-500.0,0.00015978,2]
[339133598,1727262935021,-500.0,0.00015978,2]
[339133599,1727262935043,-500.0,0.00015978,2]
[339133600,1727262935066,-500.0,0.00015978,2]
[339133601,1727262935089,-500.0,0.00015978,2]
[339133602,1727262935111,-500.0,0.00015978,2]
[339133603,1727262935134,-500.0,0.00015978,2]
[339133604,1727262935156,-500.0,0.00015978,2]
[339133605,1727262935179,-500.0,0.00015978,2]
[339133606,1727262935202,-183.89299039,0.00015978,2]
[339133607,1727262935225,-500.0,0.00015978,2]
[339133608,1727262935249,-500.0,0.00015978,2]
[339133609,1727262935271,-500.0,0.00015978,2]
[339133610,1727262935295,-500.0,0.00015978,2]
[339133611,1727262935322,-500.0,0.00015978,2]
[339133612,1727262935347,-500.0,0.00015978,2]
[339133613,1727262935646,-500.0,0.00015978,2]
[339133614,1727262935670,-500.0,0.00015978,2]
[339133615,1727262935694,-500.0,0.00015978,2]
[339133616,1727262935718,-500.0,0.00015978,2]
[339133617,1727262935740,-500.0,0.00015978,2]
[339133618,1727262935764,-500.0,0.00015978,2]
[339133619,1727262935785,-500.0,0.00015978,2]
[339133620,1727262935809,-500.0,0.00015978,2]
[339133621,1727262935832,-500.0,0.00015978,2]
[339133622,1727262935857,-500.0,0.00015978,2]
[339133623,1727262935880,-500.0,0.00015978,2]
[339133624,1727262935905,-500.0,0.00015978,2]
[339133625,1727262935929,-500.0,0.00015978,2]
[339133626,1727262935953,-500.0,0.00015978,2]
[339133627,1727262935978,-500.0,0.00015978,2]
[339133628,1727262936001,-500.0,0.00015978,2]
[339133629,1727262936037,-500.0,0.00015978,2]
[339133630,1727262936060,-445.15165992,0.00015978,2]
[339133631,1727262936083,-500.0,0.00015978,2]
[339133632,1727262936105,-500.0,0.00015978,2]
[339133633,1727262936127,-500.0,0.00015978,2]
[339133634,1727262936151,-500.0,0.00015978,2]
[339133635,1727262936174,-500.0,0.00015978,2]
[339133636,1727262936197,-500.0,0.00015978,2]
[339133637,1727262936219,-500.0,0.00015978,2]
[339133638,1727262936243,-500.0,0.00015978,2]
[339133639,1727262936265,-500.0,0.00015978,2]
[339133640,1727262936287,-500.0,0.00015978,2]
[339133641,1727262936309,-500.0,0.00015978,2]
[339133642,1727262936333,-500.0,0.00015978,2]
[339133643,1727262936356,-500.0,0.00015978,2]
[339133644,1727262936380,-500.0,0.00015978,2]
[339133645,1727262936403,-500.0,0.00015978,2]
[339133646,1727262936428,-500.0,0.00015978,2]
[339133647,1727262936455,-500.0,0.00015978,2]
[339133648,1727262936479,-500.0,0.00015978,2]
[339133649,1727262936502,-500.0,0.00015978,2]
[339133650,1727262936534,-500.0,0.00015978,2]
[339133651,1727262936557,-500.0,0.00015978,2]
[339133652,1727262936580,-500.0,0.00015978,2]
[339133653,1727262936603,-1501.43527334,0.00015978,2]
[339133655,1727263432004,250.0,0.00013812,2]
[339133656,1727263454727,250.0,0.0001383,2]
[339133657,1727263454785,250.0,0.00013868,2]
[339133658,1727263455010,250.0,0.00013906,2]
[339133659,1727263455223,250.0,0.00013944,2]
[339133660,1727263455441,250.0,0.00013982,2]
[339133661,1727263455651,250.0,0.0001402,2]
[339133662,1727263455879,250.0,0.00014058,2]
[339133663,1727263456241,250.0,0.00014096,2]
[339133664,1727263457108,4977.021375,0.00013727,2]
[339133667,1727263534316,202.1138772,0.00013491,2]
[339133668,1727263544913,196.740456,0.00013699,2]
[339133679,1727263627322,11985.22668364,0.00013491,2]
[339133680,1727263627350,12914.77331636,0.00013491,2]
[339133682,1727263746174,-201.13512516,0.00014134,2]
[339133735,1727263832844,-48.86487484,0.00014134,2]
[339133737,1727263832854,-250.0,0.00014172,2]
[339133740,1727263832866,-250.0,0.00014209,2]
[339133742,1727263832877,-250.0,0.00014247,2]
[339133744,1727263832886,-278.216432,0.00014249,2]
[339133746,1727263832896,-250.0,0.00014285,2]
[339133748,1727263832906,-250.0,0.00014323,2]
[339133750,1727263832915,-250.0,0.00014361,2]
[339133752,1727263832925,-250.0,0.00014399,2]
[339133754,1727263832935,-250.0,0.00014437,2]
[339133756,1727263832946,-250.0,0.00014475,2]
[339133758,1727263832956,-250.0,0.00014513,2]
[339133760,1727263832967,-250.0,0.00014551,2]
[339133762,1727263832978,-300.0,0.00014639,2]
[339133764,1727263832990,-300.0,0.00014639,2]
[339133766,1727263833000,-14305.5455545,0.0001464,2]
[339133768,1727263833009,-849.5556434,0.0001466,2]
[339133770,1727263833020,-310.5096709,0.0001487,2]
[339133772,1727263833030,-5000.0,0.000149,2]
[339133774,1727263833039,-603.69509252,0.00014957,2]
[339133776,1727263833048,-161.46135284,0.00014957,2]
[339133927,1727263840255,-500.0,0.00014956,2]
[339133929,1727263840265,-353.76588782,0.00014956,2]
[339133931,1727263840275,-748.75273466,0.00014956,2]
[339133933,1727263840285,-748.75273466,0.00014956,2]
[339133935,1727263840294,-748.75273466,0.00014956,2]
[339133937,1727263840304,-748.75273466,0.00014956,2]
[339133939,1727263840313,-748.75273466,0.00014956,2]
[339133941,1727263840323,-748.75273466,0.00014956,2]
[339133943,1727263840333,-748.75273466,0.00014956,2]
[339133945,1727263840343,-748.75273466,0.00014956,2]
[339133947,1727263840352,-748.75273466,0.00014956,2]
[339133949,1727263840362,-748.75273466,0.00014956,2]
[339133951,1727263840371,-748.75273466,0.00014956,2]
[339133953,1727263840382,-748.75273466,0.00014956,2]
[339133955,1727263840391,-748.75273466,0.00014956,2]
[339133957,1727263840400,-748.75273466,0.00014956,2]
[339133959,1727263840409,-748.75273466,0.00014956,2]
[339133961,1727263840419,-748.75273466,0.00014956,2]
[339133963,1727263840428,-748.75273466,0.00014956,2]
[339133965,1727263840438,-748.75273466,0.00014956,2]
[339133967,1727263840448,-748.75273466,0.00014956,2]
[339133969,1727263840457,-748.75273466,0.00014956,2]
[339133971,1727263840466,-748.75273466,0.00014956,2]
[339133973,1727263840476,-748.75273466,0.00014956,2]
[339133975,1727263840486,-748.75273466,0.00014956,2]
[339133977,1727263840495,-748.75273466,0.00014956,2]
[339133979,1727263840504,-748.75273466,0.00014956,2]
[339133981,1727263840514,-748.75273466,0.00014956,2]
[339133983,1727263840524,-748.75273466,0.00014956,2]
[339133985,1727263840533,-748.75273466,0.00014956,2]
[339133987,1727263840543,-748.75273466,0.00014956,2]
[339133989,1727263840552,-748.75273466,0.00014956,2]
[339133991,1727263840561,-748.75273466,0.00014956,2]
[339133993,1727263840571,-748.75273466,0.00014956,2]
[339133995,1727263840580,-748.75273466,0.00014956,2]
[339133997,1727263840590,-748.75273466,0.00014956,2]
[339134000,1727263840600,-748.75273466,0.00014956,2]
[339134002,1727263840609,-748.75273466,0.00014956,2]
[339134004,1727263840618,-748.75273466,0.00014956,2]
[339134006,1727263840628,-748.75273466,0.00014956,2]
[339134008,1727263840640,-748.75273466,0.00014956,2]
[339134010,1727263840649,-748.75273466,0.00014956,2]
[339134012,1727263840659,-748.75273466,0.00014956,2]
[339134014,1727263840668,-748.75273466,0.00014956,2]
[339134016,1727263840678,-748.75273466,0.00014956,2]
[339134018,1727263840687,-748.75273466,0.00014956,2]
[339134020,1727263840696,-748.75273466,0.00014956,2]
[339134022,1727263840706,-338.53864716,0.00014957,2]
[339134023,1727263840715,-500.0,0.00014957,2]
[339134024,1727263840725,-206.45920274,0.00014957,2]
[339134025,1727263840734,-282.09135362,0.00014957,2]
[339134026,1727263840743,-500.0,0.00014957,2]
[339134027,1727263840752,-500.0,0.00014957,2]
[339134028,1727263840761,-500.0,0.00014957,2]
[339134029,1727263840770,-643.20586063,0.00014957,2]
[339134030,1727263840780,-628.8951118,0.00014957,2]
[339134031,1727263840789,-500.0,0.00014957,2]
[339134032,1727263840800,-500.0,0.00014957,2]
[339134033,1727263840810,-500.0,0.00014957,2]
[339134034,1727263840819,-500.0,0.00014957,2]
[339134035,1727263840829,-401.72402719,0.00014957,2]
[339134036,1727263840838,-500.0,0.00014957,2]
[339134037,1727263840847,-500.0,0.00014957,2]
[339134038,1727263840856,-500.0,0.00014957,2]
[339134039,1727263840865,-500.0,0.00014957,2]
[339134040,1727263840874,-500.0,0.00014957,2]
[339134041,1727263840886,-62880.433331,0.00014958,2]
[339134042,1727263840904,-3001.53686509,0.00014958,2]
[339134043,1727263840913,-2044.18681604,0.0001496,2]
[339134044,1727263840922,-125760.866662,0.0001496,2]
[339134046,1727263840931,-6003.07373018,0.0001496,2]
[339134048,1727263840940,-500.0,0.00014973,2]
[339134050,1727263840949,-500.0,0.00014973,2]
[339134052,1727263840958,-500.0,0.00014973,2]
[339134054,1727263840968,-500.0,0.00014973,2]
[339134056,1727263840978,-500.0,0.00014973,2]
[339134058,1727263840990,-500.0,0.00014973,2]
[339134060,1727263841000,-628.71719174,0.00014973,2]
[339134062,1727263841009,-500.0,0.00014973,2]
[339134064,1727263841018,-10000.0,0.00015,2]
[339134066,1727263841028,-10197.93496537,0.00015,2]
[339134068,1727263841037,-196.740456,0.00015068,2]
[339134070,1727263841047,-236.86643405,0.000151,2]
[339134072,1727263841057,-236.86643404,0.000151,2]
[339134074,1727263841067,-236.86643404,0.000151,2]
[339134076,1727263841076,-310.50967086,0.0001512,2]
[339134078,1727263841085,-310.50967086,0.0001537,2]
[339134080,1727263841094,-504.80866085,0.00015521,2]
[339134082,1727263841104,-500.0,0.00015521,2]
[339134084,1727263841113,-1000.0,0.00015521,2]
[339134086,1727263841122,-501.27116935,0.00015521,2]
[339134089,1727263841135,-1001.41607235,0.00015593,2]
[339134091,1727263841144,-307.8658611,0.000156,2]
[339134093,1727263841152,-153.0,0.00015616,2]
[339134094,1727263841161,-209.0875088,0.00015616,2]
[339134096,1727263841171,-209.0875088,0.00015616,2]
[339134098,1727263841181,-209.0875088,0.00015616,2]
[339134100,1727263841190,-310.50967086,0.0001562,2]
[339134102,1727263841199,-150.112233,0.000157,2]
[339134104,1727263841209,-150.0,0.00015722,2]
[339134106,1727263841218,-150.112233,0.000158,2]
[339134108,1727263841228,-7146.18197968,0.00015824,2]
[339134110,1727263841237,-125760.866662,0.0001586,2]
[339134112,1727263841246,-6003.07373018,0.0001586,2]
[339134114,1727263841255,-151.0,0.0001587,2]
[339134116,1727263841265,-194.880073,0.0001587,2]
[339134118,1727263841274,-194.880073,0.0001587,2]
[339134120,1727263841283,-310.50967086,0.0001587,2]
[339134122,1727263841292,-2539.362611,0.0001587,2]
[339134124,1727263841301,-2539.362611,0.0001587,2]
[339134126,1727263841310,-2481.765256,0.0001587,2]
[339134128,1727263841319,-2481.765256,0.0001587,2]
[339134130,1727263841328,-151.0,0.0001587,2]
[339134132,1727263841338,-2054.426845,0.0001587,2]
[339134133,1727263841347,-2054.426845,0.0001587,2]
[339134135,1727263841356,-255.056118,0.0001587,2]
[339134137,1727263841365,-255.056118,0.0001587,2]
[339134139,1727263841374,-151.0,0.0001587,2]
[339134141,1727263841384,-1000.0,0.0001588,2]
[339134142,1727263841394,-209.0875088,0.000159,2]
[339134143,1727263841403,-1897.53830944,0.000159,2]
[339134144,1727263841412,-3001.53686509,0.00015947,2]
[339134145,1727263841422,-3001.53686509,0.00015947,2]
[339134146,1727263841431,-3001.53686509,0.00015951,2]
[339134147,1727263841440,-214.030628,0.00015957,2]
[339134149,1727263841451,-194.880073,0.00015957,2]
[339134151,1727263841461,-194.880073,0.00015957,2]
[339134153,1727263841471,-2539.362611,0.00015957,2]
[339134155,1727263841480,-2539.362611,0.00015957,2]
[339134157,1727263841490,-2481.765256,0.00015957,2]
[339134160,1727263841501,-2481.765256,0.00015957,2]
[339134162,1727263841511,-151.0,0.00015957,2]
[339134164,1727263841520,-2054.426845,0.00015957,2]
[339134166,1727263841530,-2054.426845,0.00015957,2]
[339134168,1727263841540,-255.056118,0.00015957,2]
[339134170,1727263841550,-255.056118,0.00015957,2]
[339134172,1727263841561,-151.0,0.00015957,2]
[339134174,1727263841572,-194.880073,0.00015961,2]
[339134176,1727263841583,-194.880073,0.00015961,2]
[339134179,1727263841594,-2539.362611,0.00015961,2]
[339134181,1727263841603,-2539.362611,0.00015961,2]
[339134183,1727263841613,-2481.765256,0.00015961,2]
[339134185,1727263841623,-2481.765256,0.00015961,2]
[339134187,1727263841634,-151.0,0.00015961,2]
[339134189,1727263841644,-2054.426845,0.00015961,2]
[339134191,1727263841654,-2054.426845,0.00015961,2]
[339134193,1727263841663,-255.056118,0.00015961,2]
[339134195,1727263841672,-255.056118,0.00015961,2]
[339134197,1727263841681,-151.0,0.00015961,2]
[339134199,1727263841691,-5833.76090021,0.0001597,2]
[339134201,1727263841702,-326.74692344,0.00015973,2]
[339134203,1727263841712,-501.1343822,0.00015973,2]
[339134205,1727263841723,-500.0,0.00015973,2]
[339134208,1727263841733,-500.79771524,0.00015973,2]
[339134210,1727263841746,-998.20323418,0.00015983,2]
[339134212,1727263841757,-316.92493701,0.00015986,2]
[339134214,1727263841767,-1007.7710005,0.00015986,2]
[339134216,1727263841776,-3001.53686509,0.0001599,2]
[339134218,1727263841786,-1000.0,0.00016,2]
[339134220,1727263841795,-1000.0,0.00016,2]
[339134222,1727263841805,-1000.0,0.00016,2]
[339134224,1727263841815,-1000.0,0.00016,2]
[339134226,1727263841824,-1000.0,0.00016,2]
[339134228,1727263841834,-1000.0,0.00016,2]
[339134230,1727263841843,-1000.0,0.00016,2]
[339134232,1727263841853,-1000.0,0.00016,2]
[339134234,1727263841862,-1000.0,0.00016,2]
[339134236,1727263841872,-1000.0,0.00016,2]
[339134238,1727263841881,-150.112233,0.00016,2]
[339134240,1727263841891,-25079.18129531,0.00016,2]
[339134242,1727263841902,-194.880073,0.00016,2]
[339134244,1727263841911,-194.880073,0.00016,2]
[339134246,1727263841920,-2539.362611,0.00016,2]
[339134248,1727263841929,-2539.362611,0.00016,2]
[339134250,1727263841938,-2481.765256,0.00016,2]
[339134252,1727263841948,-2481.765256,0.00016,2]
[339134254,1727263841957,-151.0,0.00016,2]
[339134256,1727263841966,-255.056118,0.00016,2]
[339134258,1727263841976,-255.056118,0.00016,2]
[339134260,1727263841990,-442.55181822,0.00016,2]
[339134262,1727263842001,-184.0,0.0001602,2]
[339134265,1727263842011,-420.0,0.00016028,2]
[339134266,1727263842020,-1936.5764669,0.00016088,2]
[339134269,1727263842031,-306.0,0.000161,2]
[339134271,1727263842040,-153.0,0.000161,2]
[339134273,1727263842050,-209.0875088,0.000161,2]
[339134275,1727263842062,-153.0,0.000161,2]
[339134276,1727263842071,-420.0,0.00016103,2]
[339134278,1727263842081,-3001.53686509,0.0001619,2]
[339134281,1727263842091,-150.112233,0.000162,2]
[339134282,1727263842100,-153.0,0.000162,2]
[339134284,1727263842109,-153.0,0.000162,2]
[339134286,1727263842119,-154.2386274,0.000162,2]
[339134288,1727263842128,-153.0,0.000162,2]
[339134290,1727263842138,-153.0,0.000162,2]
[339134292,1727263842147,-153.0,0.000162,2]
[339134294,1727263842157,-306.0,0.000162,2]
[339134296,1727263842167,-153.0,0.000162,2]
[339134298,1727263842176,-150.112233,0.000162,2]
[339134300,1727263842186,-1056.59828299,0.00016202,2]
[339134302,1727263842196,-647.42332764,0.00016205,2]
[339134305,1727263842206,-1000.0,0.00016211,2]
[339134306,1727263842215,-544.1636485,0.00016289,2]
[339134309,1727263842226,-150.112233,0.000163,2]
[339134311,1727263842237,-150.112233,0.000163,2]
[339134313,1727263842247,-150.112237,0.000163,2]
[339134315,1727263842257,-150.112233,0.000163,2]
[339134317,1727263842267,-150.112233,0.000163,2]
[339134319,1727263842276,-150.112233,0.000163,2]
[339134321,1727263842286,-150.112233,0.000163,2]
[339134323,1727263842295,-150.112233,0.000163,2]
[339134325,1727263842304,-3001.53686509,0.00016308,2]
[339134327,1727263842314,-6003.07373018,0.00016308,2]
[339134329,1727263842323,-631.123,0.00016317,2]
[339134331,1727263842333,-3001.53686509,0.00016318,2]
[339134332,1727263842342,-198.51650788,0.00016318,2]
[339134334,1727263842352,-194.880073,0.00016318,2]
[339134336,1727263842361,-194.880073,0.00016318,2]
[339134338,1727263842371,-194.880073,0.00016318,2]
[339134340,1727263842380,-194.880073,0.00016318,2]
[339134342,1727263842391,-2539.362611,0.00016318,2]
[339134344,1727263842400,-2539.362611,0.00016318,2]
[339134346,1727263842409,-2539.362611,0.00016318,2]
[339134348,1727263842418,-2539.362611,0.00016318,2]
[339134350,1727263842428,-2481.765256,0.00016318,2]
[339134352,1727263842438,-2481.765256,0.00016318,2]
[339134354,1727263842447,-2481.765256,0.00016318,2]
[339134356,1727263842457,-2481.765256,0.00016318,2]
[339134358,1727263842467,-151.0,0.00016318,2]
[339134360,1727263842477,-151.0,0.00016318,2]
[339134362,1727263842486,-2054.426845,0.00016318,2]
[339134364,1727263842495,-2054.426845,0.00016318,2]
[339134366,1727263842504,-2054.426845,0.00016318,2]
[339134368,1727263842514,-2054.426845,0.00016318,2]
[339134370,1727263842524,-255.056118,0.00016318,2]
[339134372,1727263842534,-255.056118,0.00016318,2]
[339134374,1727263842544,-255.056118,0.00016318,2]
[339134376,1727263842554,-255.056118,0.00016318,2]
[339134378,1727263842564,-151.0,0.00016318,2]
[339134380,1727263842574,-151.0,0.00016318,2]
[339134382,1727263842583,-347.388722,0.00016328,2]
[339134384,1727263842593,-347.388722,0.00016328,2]
[339134386,1727263842603,-347.388722,0.00016328,2]
[339134388,1727263842613,-347.388722,0.00016328,2]
[339134391,1727263842623,-151.0,0.00016328,2]
[339134393,1727263842634,-151.0,0.00016328,2]
[339134395,1727263842644,-151.0,0.00016328,2]
[339134397,1727263842655,-509.067746,0.00016328,2]
[339134399,1727263842665,-509.067746,0.00016328,2]
[339134401,1727263842675,-509.067746,0.00016328,2]
[339134403,1727263842685,-509.067746,0.00016328,2]
[339134405,1727263842695,-409.246584,0.00016328,2]
[339134407,1727263842706,-409.246584,0.00016328,2]
[339134409,1727263842715,-409.246584,0.00016328,2]
[339134411,1727263842724,-409.246584,0.00016328,2]
[339134413,1727263842734,-151.0,0.00016328,2]
[339134415,1727263842744,-151.0,0.00016328,2]
[339134417,1727263842753,-151.0,0.00016328,2]
[339134419,1727263842763,-151.0,0.00016328,2]
[339134421,1727263842773,-151.0,0.00016328,2]
[339134423,1727263842783,-151.0,0.00016328,2]
[339134425,1727263842792,-2000.0,0.00016328,2]
[339134427,1727263842801,-152.756338,0.00016328,2]
[339134430,1727263842812,-2000.0,0.00016328,2]
[339134432,1727263842822,-2000.0,0.00016328,2]
[339134434,1727263842832,-2000.0,0.00016328,2]
[339134436,1727263842842,-2000.0,0.00016328,2]
[339134438,1727263842852,-2000.0,0.00016328,2]
[339134439,1727263842861,-2000.0,0.00016328,2]
[339134441,1727263842871,-2000.0,0.00016328,2]
[339134444,1727263842882,-2000.0,0.00016328,2]
[339134446,1727263842892,-2000.0,0.00016328,2]
[339134448,1727263842901,-2000.0,0.00016328,2]
[339134450,1727263842910,-2000.0,0.00016328,2]
[339134452,1727263842920,-2000.0,0.00016328,2]
[339134454,1727263842929,-2000.0,0.00016328,2]
[339134456,1727263842939,-2000.0,0.00016328,2]
[339134480,1727263842948,-2000.0,0.00016328,2]
[339134482,1727263843156,-2000.0,0.00016328,2]
[339134484,1727263843166,-2000.0,0.00016328,2]
[339134486,1727263843177,-2000.0,0.00016328,2]
[339134488,1727263843186,-1719.583193,0.00016328,2]
[339134490,1727263843196,-2338.008407,0.00016328,2]
[339134492,1727263843212,-2338.008407,0.00016328,2]
[339134494,1727263843222,-2338.008407,0.00016328,2]
[339134497,1727263843232,-2338.008407,0.00016328,2]
[339134499,1727263843242,-753.02402,0.00016328,2]
[339134501,1727263843253,-753.02402,0.00016328,2]
[339134503,1727263843264,-753.02402,0.00016328,2]
[339134505,1727263843273,-753.02402,0.00016328,2]
[339134507,1727263843282,-151.0,0.00016328,2]
[339134509,1727263843292,-151.0,0.00016328,2]
[339134511,1727263843302,-151.0,0.00016328,2]
[339134513,1727263843311,-151.0,0.00016328,2]
[339134515,1727263843320,-169.970857,0.00016328,2]
[339134517,1727263843330,-169.970857,0.00016328,2]
[339134519,1727263843339,-169.970857,0.00016328,2]
[339134521,1727263843349,-169.970857,0.00016328,2]
[339134523,1727263843360,-170.007318,0.00016328,2]
[339134525,1727263843370,-170.007318,0.00016328,2]
[339134527,1727263843380,-601.84609,0.00016328,2]
[339134529,1727263843390,-601.84609,0.00016328,2]
[339134531,1727263843401,-170.007318,0.00016328,2]
[339134533,1727263843410,-170.007318,0.00016328,2]
[339134535,1727263843420,-601.84609,0.00016328,2]
[339134537,1727263843430,-601.84609,0.00016328,2]
[339134539,1727263843440,-364.994837,0.00016328,2]
[339134541,1727263843450,-364.994837,0.00016328,2]
[339134543,1727263843459,-364.994837,0.00016328,2]
[339134545,1727263843468,-364.994837,0.00016328,2]
[339134547,1727263843477,-1415.896426,0.00016328,2]
[339134549,1727263843486,-1415.896426,0.00016328,2]
[339134551,1727263843496,-5995.001551,0.00016328,2]
[339134553,1727263843505,-5995.001551,0.00016328,2]